[Event "*** Titled Tuesday Blitz"]
[Site "Chess.com"]
[Date "2018.05.01"]
[Round "7"]
[White "JoachimBN"]
[Black "SCIM"]
[Result "1-0"]
[WhiteElo "2572"]
[BlackElo "2401"]
[TimeControl "180+2"]
[EndTime "14:35:52 PDT"]
[Termination "JoachimBN won by checkmate"]

1. c4 {[%clk 0:03:01.9]} 1... e6 {[%clk 0:02:59.6]} 2. Nc3 {[%clk 0:03:02]} 2...
d5 {[%clk 0:03:00.3]} 3. e3 {[%clk 0:03:00.2]} 3... Nf6 {[%clk 0:03:00.3]} 4.
Nf3 {[%clk 0:03:00.8]} 4... Be7 {[%clk 0:03:00.3]} 5. b3 {[%clk 0:03:02]} 5...
O-O {[%clk 0:03:00.4]} 6. Bb2 {[%clk 0:03:03.6]} 6... b6 {[%clk 0:03:01.2]} 7.
Qc2 {[%clk 0:03:04.6]} 7... Bb7 {[%clk 0:03:00.7]} 8. Be2 {[%clk 0:03:06.1]}
8... c5 {[%clk 0:03:00.8]} 9. O-O {[%clk 0:02:59.4]} 9... Nc6 {[%clk 0:02:59.3]}
10. cxd5 {[%clk 0:02:59.2]} 10... exd5 {[%clk 0:02:57]} 11. Rad1 {[%clk
0:02:58.8]} 11... Rc8 {[%clk 0:02:40.4]} 12. d4 {[%clk 0:02:49]} 12... cxd4
{[%clk 0:02:31.1]} 13. Nxd4 {[%clk 0:02:49.3]} 13... Nxd4 {[%clk 0:02:31.8]} 14.
Rxd4 {[%clk 0:02:50.1]} 14... Ne4 {[%clk 0:02:32.3]} 15. f3 {[%clk 0:02:21.7]}
15... Nxc3 {[%clk 0:02:30.3]} 16. Bxc3 {[%clk 0:02:23.6]} 16... Bf6 {[%clk
0:02:25.1]} 17. Qd2 {[%clk 0:02:24.6]} 17... Bxd4 {[%clk 0:02:22.2]} 18. Qxd4
{[%clk 0:02:26.5]} 18... f6 {[%clk 0:02:22.7]} 19. Bd3 {[%clk 0:02:16.6]} 19...
Qe7 {[%clk 0:02:16.8]} 20. Bb4 {[%clk 0:02:16.1]} 20... Rc5 {[%clk 0:02:11.4]}
21. Bxc5 {[%clk 0:02:09.4]} 21... bxc5 {[%clk 0:02:10.5]} 22. Qf4 {[%clk
0:02:09.4]} 22... g5 {[%clk 0:01:48.2]} 23. Qf5 {[%clk 0:02:10.1]} 23... Qxe3+
{[%clk 0:01:48.3]} 24. Kh1 {[%clk 0:02:11.6]} 24... Rf7 {[%clk 0:01:44.1]} 25.
f4 {[%clk 0:01:56.8]} 25... gxf4 {[%clk 0:01:37.3]} 26. Rxf4 {[%clk 0:01:57.4]}
26... Qe1+ {[%clk 0:01:13.3]} 27. Rf1 {[%clk 0:01:57.9]} 27... Qe5 {[%clk
0:01:12.4]} 28. Qg4+ {[%clk 0:01:58]} 28... Rg7 {[%clk 0:01:10.5]} 29. Qf3
{[%clk 0:01:52.5]} 29... h5 {[%clk 0:00:43.8]} 30. Qxf6 {[%clk 0:01:40]} 30...
Qxf6 {[%clk 0:00:44.3]} 31. Rxf6 {[%clk 0:01:41.9]} 31... h4 {[%clk 0:00:45.2]}
32. Kg1 {[%clk 0:01:31.6]} 32... d4 {[%clk 0:00:28.9]} 33. Bg6 {[%clk
0:01:31.8]} 33... Rd7 {[%clk 0:00:15.8]} 34. Bf5 {[%clk 0:01:22.2]} 34... Rd8
{[%clk 0:00:13.2]} 35. Kf2 {[%clk 0:01:20.8]} 35... d3 {[%clk 0:00:13]} 36. Bg4
{[%clk 0:01:13.4]} 36... d2 {[%clk 0:00:13.2]} 37. Bd1 {[%clk 0:01:14.8]} 37...
Kg7 {[%clk 0:00:11.6]} 38. Rf4 {[%clk 0:01:12.4]} 38... Rd4 {[%clk 0:00:10.6]}
39. Rxd4 {[%clk 0:01:11.4]} 39... cxd4 {[%clk 0:00:11.6]} 40. g3 {[%clk
0:01:13.1]} 40... hxg3+ {[%clk 0:00:12.7]} 41. hxg3 {[%clk 0:01:15]} 41... Kf6
{[%clk 0:00:13.2]} 42. Ke2 {[%clk 0:01:16.2]} 42... Be4 {[%clk 0:00:13.1]} 43.
Kxd2 {[%clk 0:01:17.1]} 43... Ke5 {[%clk 0:00:13.5]} 44. Bc2 {[%clk 0:01:17.9]}
44... Bf3 {[%clk 0:00:12.6]} 45. Bd3 {[%clk 0:01:18.7]} 45... a5 {[%clk
0:00:13.3]} 46. a3 {[%clk 0:01:19]} 46... Bd5 {[%clk 0:00:13.2]} 47. Bc2 {[%clk
0:01:15.1]} 47... Bb7 {[%clk 0:00:12]} 48. g4 {[%clk 0:01:12.4]} 48... Kf4
{[%clk 0:00:11.8]} 49. g5 {[%clk 0:01:13.5]} 49... Kxg5 {[%clk 0:00:10.4]} 50.
Kd3 {[%clk 0:01:15]} 50... Kf6 {[%clk 0:00:10.7]} 51. Kxd4 {[%clk 0:01:16.4]}
51... Ke6 {[%clk 0:00:10.7]} 52. Kc5 {[%clk 0:01:17.5]} 52... a4 {[%clk
0:00:08.7]} 53. b4 {[%clk 0:01:18.3]} 53... Kd7 {[%clk 0:00:09]} 54. Bxa4+
{[%clk 0:01:19.3]} 54... Kc7 {[%clk 0:00:10.3]} 55. Bb3 {[%clk 0:01:20.5]} 55...
Bf3 {[%clk 0:00:09.5]} 56. b5 {[%clk 0:01:21.6]} 56... Kb8 {[%clk 0:00:11]} 57.
a4 {[%clk 0:01:22.6]} 57... Bb7 {[%clk 0:00:12.5]} 58. a5 {[%clk 0:01:23.8]}
58... Bf3 {[%clk 0:00:14]} 59. b6 {[%clk 0:01:24.9]} 59... Bg2 {[%clk
0:00:12.8]} 60. a6 {[%clk 0:01:25.8]} 60... Bf1 {[%clk 0:00:14.1]} 61. a7+
{[%clk 0:01:26.2]} 61... Ka8 {[%clk 0:00:15.3]} 62. Bd5# {[%clk 0:01:27.7]} 1-0

[Event "*** Titled Tuesday Blitz"]
[Site "Chess.com"]
[Date "2018.05.01"]
[Round "7"]
[White "Pudor"]
[Black "XiaoKangZhong"]
[Result "1/2-1/2"]
[WhiteElo "2223"]
[BlackElo "2200"]
[TimeControl "180+2"]
[EndTime "14:36:10 PDT"]
[Termination "Game drawn by agreement"]

1. d4 {[%clk 0:03:01.9]} 1... Nf6 {[%clk 0:03:00]} 2. c4 {[%clk 0:03:01.7]} 2...
g6 {[%clk 0:03:00.8]} 3. Nc3 {[%clk 0:02:48.5]} 3... d5 {[%clk 0:02:57.7]} 4.
Nf3 {[%clk 0:02:47.8]} 4... Bg7 {[%clk 0:02:58.3]} 5. cxd5 {[%clk 0:02:49]} 5...
Nxd5 {[%clk 0:02:57.9]} 6. e4 {[%clk 0:02:50.1]} 6... Nxc3 {[%clk 0:02:57.8]} 7.
bxc3 {[%clk 0:02:52]} 7... O-O {[%clk 0:02:58.9]} 8. Be2 {[%clk 0:02:51.7]} 8...
c5 {[%clk 0:02:59.6]} 9. O-O {[%clk 0:02:52.1]} 9... Nc6 {[%clk 0:02:58.1]} 10.
Be3 {[%clk 0:02:44.4]} 10... Qa5 {[%clk 0:02:56.1]} 11. d5 {[%clk 0:02:42.7]}
11... Rd8 {[%clk 0:02:54.8]} 12. Qc2 {[%clk 0:02:27.6]} 12... Ne5 {[%clk
0:02:52.7]} 13. Nxe5 {[%clk 0:02:25.2]} 13... Bxe5 {[%clk 0:02:52.6]} 14. Bd2
{[%clk 0:02:23.1]} 14... a6 {[%clk 0:02:47]} 15. f4 {[%clk 0:02:18.7]} 15... Bg7
{[%clk 0:02:47.3]} 16. c4 {[%clk 0:02:13.3]} 16... Qc7 {[%clk 0:02:46.7]} 17. e5
{[%clk 0:02:14.3]} 17... Bf5 {[%clk 0:02:46.1]} 18. Bd3 {[%clk 0:02:11.8]} 18...
Bxd3 {[%clk 0:02:40.1]} 19. Qxd3 {[%clk 0:02:13.7]} 19... Rab8 {[%clk
0:02:37.2]} 20. Kh1 {[%clk 0:01:51.2]} 20... b5 {[%clk 0:02:33.4]} 21. Rac1
{[%clk 0:01:47.1]} 21... Qb7 {[%clk 0:02:16.1]} 22. d6 {[%clk 0:01:12.5]} 22...
exd6 {[%clk 0:02:10.7]} 23. exd6 {[%clk 0:01:14.4]} 23... Qc6 {[%clk 0:02:11.7]}
24. cxb5 {[%clk 0:01:13.1]} 24... axb5 {[%clk 0:02:11.1]} 25. Be3 {[%clk
0:01:06.2]} 25... Rxd6 {[%clk 0:02:08.5]} 26. Qc2 {[%clk 0:00:51]} 26... c4
{[%clk 0:02:05.1]} 27. f5 {[%clk 0:00:51.7]} 27... Rbd8 {[%clk 0:02:01.9]} 28.
Bg5 {[%clk 0:00:41.9]} 28... Bf6 {[%clk 0:01:48.7]} 29. Bf4 {[%clk 0:00:36.8]}
29... Rd4 {[%clk 0:01:38.5]} 30. Qf2 {[%clk 0:00:32]} 30... Qe4 {[%clk
0:01:28.1]} 31. Be3 {[%clk 0:00:28.7]} 31... R4d6 {[%clk 0:01:18.4]} 32. Rce1
{[%clk 0:00:29.5]} 32... Qc6 {[%clk 0:01:13.9]} 33. Bf4 {[%clk 0:00:26.7]} 33...
Rd5 {[%clk 0:01:07.9]} 34. fxg6 {[%clk 0:00:27.4]} 34... hxg6 {[%clk 0:01:08.5]}
35. Bg3 {[%clk 0:00:28]} 35... Rf5 {[%clk 0:01:02.7]} 36. Qa7 {[%clk 0:00:23.2]}
36... Rd2 {[%clk 0:00:53.7]} 37. Rg1 {[%clk 0:00:20.2]} 37... Bd4 {[%clk
0:00:42.9]} 38. Qb8+ {[%clk 0:00:20.5]} 38... Kg7 {[%clk 0:00:36]} 39. Be5+
{[%clk 0:00:17.8]} 39... Bxe5 {[%clk 0:00:36.1]} 40. Rxe5 {[%clk 0:00:19.7]}
40... Rxe5 {[%clk 0:00:32.8]} 41. Qxe5+ {[%clk 0:00:20.2]} 41... Kh7 {[%clk
0:00:31.8]} 42. Qf4 {[%clk 0:00:19.2]} 42... Rd7 {[%clk 0:00:25.3]} 43. Qh4+
{[%clk 0:00:19.9]} 43... Kg7 {[%clk 0:00:24.9]} 44. Rf1 {[%clk 0:00:20.7]} 44...
Qe6 {[%clk 0:00:22.9]} 45. Qf4 {[%clk 0:00:18]} 45... Qf5 {[%clk 0:00:20.4]} 46.
Qc1 {[%clk 0:00:18.2]} 46... Qd3 {[%clk 0:00:21.1]} 47. Qa1+ {[%clk 0:00:18.2]}
47... c3 {[%clk 0:00:22]} 48. h3 {[%clk 0:00:18.8]} 48... b4 {[%clk 0:00:21.5]}
49. Rc1 {[%clk 0:00:18.7]} 49... Qd2 {[%clk 0:00:22.2]} 50. a3 {[%clk
0:00:19.1]} 50... Rc7 {[%clk 0:00:23.2]} 51. axb4 {[%clk 0:00:20.1]} 51... Kh7
{[%clk 0:00:24.4]} 52. b5 {[%clk 0:00:21.3]} 52... c2 {[%clk 0:00:25.7]} 53. b6
{[%clk 0:00:21.8]} 53... Rb7 {[%clk 0:00:26.7]} 54. Qb2 {[%clk 0:00:22.2]} 54...
Qd1+ {[%clk 0:00:26.8]} 55. Kh2 {[%clk 0:00:22.6]} 55... Qd6+ {[%clk 0:00:24.2]}
56. Kh1 {[%clk 0:00:23.8]} 56... Qd1+ {[%clk 0:00:24.9]} 57. Kh2 {[%clk
0:00:24]} 57... Rxb6 {[%clk 0:00:24.6]} 58. Qxc2 {[%clk 0:00:21.6]} 58... Qxc2
{[%clk 0:00:25.5]} 59. Rxc2 {[%clk 0:00:23.5]} 59... Rf6 {[%clk 0:00:26.5]} 60.
Kg3 {[%clk 0:00:24.1]} 1/2-1/2

[Event "*** Titled Tuesday Blitz"]
[Site "Chess.com"]
[Date "2018.05.01"]
[Round "7"]
[White "Hrant_ChessMood"]
[Black "platy3"]
[Result "0-1"]
[WhiteElo "2812"]
[BlackElo "2688"]
[TimeControl "180+2"]
[EndTime "14:36:11 PDT"]
[Termination "platy3 won on time"]

1. c4 {[%clk 0:03:01.9]} 1... Nf6 {[%clk 0:03:00]} 2. Nc3 {[%clk 0:03:01.1]}
2... g6 {[%clk 0:02:58.9]} 3. e4 {[%clk 0:02:59.6]} 3... d6 {[%clk 0:02:59.6]}
4. d4 {[%clk 0:03:00.9]} 4... Bg7 {[%clk 0:03:01]} 5. Nge2 {[%clk 0:03:02.5]}
5... O-O {[%clk 0:02:55]} 6. Ng3 {[%clk 0:03:03.5]} 6... c5 {[%clk 0:02:56.7]}
7. d5 {[%clk 0:03:03.6]} 7... h5 {[%clk 0:02:58.1]} 8. Bg5 {[%clk 0:03:01.4]}
8... e6 {[%clk 0:02:45.3]} 9. Be2 {[%clk 0:03:01.7]} 9... exd5 {[%clk
0:02:45.8]} 10. cxd5 {[%clk 0:03:01]} 10... Qb6 {[%clk 0:02:35.6]} 11. Qd2
{[%clk 0:02:58.8]} 11... Nh7 {[%clk 0:02:34.1]} 12. Be3 {[%clk 0:02:48]} 12...
h4 {[%clk 0:02:33.5]} 13. Nf1 {[%clk 0:02:48.8]} 13... f5 {[%clk 0:02:32]} 14.
Na4 {[%clk 0:02:05.1]} 14... Qc7 {[%clk 0:02:15.3]} 15. Bh6 {[%clk 0:02:05.3]}
15... fxe4 {[%clk 0:02:03.3]} 16. Bxg7 {[%clk 0:01:56.3]} 16... Qxg7 {[%clk
0:02:04.2]} 17. Ne3 {[%clk 0:01:52.1]} 17... Qd4 {[%clk 0:01:48]} 18. Nc3 {[%clk
0:01:47.4]} 18... Qxd2+ {[%clk 0:01:47.3]} 19. Kxd2 {[%clk 0:01:49.3]} 19... Ng5
{[%clk 0:01:48.7]} 20. Raf1 {[%clk 0:01:31.7]} 20... Nd7 {[%clk 0:01:36]} 21.
Nb5 {[%clk 0:01:27.9]} 21... Nf7 {[%clk 0:01:27.8]} 22. Nc4 {[%clk 0:01:12.9]}
22... Nde5 {[%clk 0:01:27.4]} 23. Nbxd6 {[%clk 0:01:03.3]} 23... Nxc4+ {[%clk
0:00:58.9]} 24. Nxc4 {[%clk 0:01:01.7]} 24... b5 {[%clk 0:00:53.7]} 25. Ne3
{[%clk 0:00:53.8]} 25... Nd6 {[%clk 0:00:54.8]} 26. Rc1 {[%clk 0:00:46.5]} 26...
c4 {[%clk 0:00:31.3]} 27. b3 {[%clk 0:00:47.3]} 27... cxb3 {[%clk 0:00:29.8]}
28. axb3 {[%clk 0:00:49.1]} 28... Rxf2 {[%clk 0:00:30.8]} 29. Rc6 {[%clk
0:00:49.4]} 29... Nf5 {[%clk 0:00:28.1]} 30. Rf1 {[%clk 0:00:46.7]} 30... Rxe2+
{[%clk 0:00:25.2]} 31. Kxe2 {[%clk 0:00:46.7]} 31... Nd4+ {[%clk 0:00:26.4]} 32.
Kd2 {[%clk 0:00:48.2]} 32... Nxc6 {[%clk 0:00:28.3]} 33. dxc6 {[%clk 0:00:49.5]}
33... Be6 {[%clk 0:00:27.6]} 34. b4 {[%clk 0:00:42.9]} 34... Rc8 {[%clk
0:00:26.9]} 35. Rc1 {[%clk 0:00:38.5]} 35... Kf7 {[%clk 0:00:28.1]} 36. Rc5
{[%clk 0:00:36.3]} 36... a6 {[%clk 0:00:28]} 37. Nc2 {[%clk 0:00:37.1]} 37...
Ke7 {[%clk 0:00:27.5]} 38. Nd4 {[%clk 0:00:37.2]} 38... Kd6 {[%clk 0:00:21.6]}
39. Ke3 {[%clk 0:00:34.3]} 39... Bd5 {[%clk 0:00:22.6]} 40. Rc2 {[%clk
0:00:14.9]} 40... Bxc6 {[%clk 0:00:23]} 41. Rf2 {[%clk 0:00:07.6]} 41... Ke7
{[%clk 0:00:24.2]} 42. Rf4 {[%clk 0:00:06.1]} 42... Bd5 {[%clk 0:00:23.1]} 43.
Rxh4 {[%clk 0:00:06.5]} 43... Rc3+ {[%clk 0:00:24.1]} 44. Kf4 {[%clk 0:00:06.5]}
44... Rd3 {[%clk 0:00:21.9]} 45. Ke5 {[%clk 0:00:04.7]} 45... Bf7 {[%clk
0:00:10.6]} 46. Rxe4 {[%clk 0:00:04.2]} 46... Kd7 {[%clk 0:00:10.7]} 47. Kf6
{[%clk 0:00:03.1]} 47... Bd5 {[%clk 0:00:10.9]} 48. Rg4 {[%clk 0:00:02.8]} 48...
Rd2 {[%clk 0:00:08.7]} 0-1

[Event "*** Titled Tuesday Blitz"]
[Site "Chess.com"]
[Date "2018.05.01"]
[Round "7"]
[White "Caterpiller35"]
[Black "Angulo07"]
[Result "0-1"]
[WhiteElo "2222"]
[BlackElo "2306"]
[TimeControl "180+2"]
[EndTime "14:36:13 PDT"]
[Termination "Angulo07 won by resignation"]

1. d4 {[%clk 0:02:58]} 1... d5 {[%clk 0:03:00.8]} 2. Bf4 {[%clk 0:02:57.9]} 2...
c5 {[%clk 0:03:01.4]} 3. e3 {[%clk 0:02:58.3]} 3... Nc6 {[%clk 0:02:58.2]} 4. c3
{[%clk 0:02:58.6]} 4... Qb6 {[%clk 0:02:57.1]} 5. Qb3 {[%clk 0:02:58.7]} 5... c4
{[%clk 0:02:57.3]} 6. Qc2 {[%clk 0:02:59.5]} 6... Bf5 {[%clk 0:02:52.5]} 7. Qxf5
{[%clk 0:03:00.1]} 7... Qxb2 {[%clk 0:02:50.6]} 8. Qxd5 {[%clk 0:03:00.4]} 8...
Qxa1 {[%clk 0:02:45.5]} 9. Qb5 {[%clk 0:03:00.7]} 9... Rd8 {[%clk 0:02:41.1]}
10. Bxc4 {[%clk 0:02:58.5]} 10... a6 {[%clk 0:02:34.8]} 11. Qb6 {[%clk
0:01:49.7]} 11... Nf6 {[%clk 0:02:31.4]} 12. Ne2 {[%clk 0:01:48.2]} 12... Nd5
{[%clk 0:02:27.5]} 13. Bxd5 {[%clk 0:01:47]} 13... Rxd5 {[%clk 0:02:28.8]} 14.
Qxb7 {[%clk 0:01:45.1]} 14... Rd7 {[%clk 0:02:14.1]} 15. Qc8+ {[%clk 0:01:25.2]}
15... Nd8 {[%clk 0:02:10.2]} 16. O-O {[%clk 0:01:22.1]} 16... Qxa2 {[%clk
0:02:08.7]} 17. Ng3 {[%clk 0:01:20.9]} 17... e6 {[%clk 0:02:04.3]} 18. c4 {[%clk
0:01:19.9]} 18... Qa4 {[%clk 0:02:02.2]} 19. Nc3 {[%clk 0:01:07.2]} 19... Qc6
{[%clk 0:02:03]} 20. Qxc6 {[%clk 0:01:07.4]} 20... Nxc6 {[%clk 0:02:03.3]} 21.
Ra1 {[%clk 0:01:07.7]} 21... Bb4 {[%clk 0:02:00.8]} 22. Na2 {[%clk 0:00:47.1]}
22... a5 {[%clk 0:01:59]} 23. Ne4 {[%clk 0:00:41.6]} 23... O-O {[%clk
0:01:52.2]} 24. c5 {[%clk 0:00:39.6]} 24... Nxd4 {[%clk 0:01:50.7]} 25. exd4
{[%clk 0:00:35.6]} 25... Rxd4 {[%clk 0:01:51.7]} 26. Bd6 {[%clk 0:00:31.5]}
26... Rxe4 {[%clk 0:01:46.2]} 27. Nxb4 {[%clk 0:00:31.3]} 27... axb4 {[%clk
0:01:41.7]} 28. Bxf8 {[%clk 0:00:30.6]} 28... Kxf8 {[%clk 0:01:43.6]} 29. Kf1
{[%clk 0:00:19]} 29... Ke7 {[%clk 0:01:38.9]} 30. Ra7+ {[%clk 0:00:19.1]} 30...
Kf6 {[%clk 0:01:37]} 31. c6 {[%clk 0:00:17.7]} 31... Rc4 {[%clk 0:01:34.8]} 32.
c7 {[%clk 0:00:18.8]} 32... e5 {[%clk 0:01:33.3]} 33. Rb7 {[%clk 0:00:17.9]}
33... Ke6 {[%clk 0:01:29.7]} 34. Ke2 {[%clk 0:00:16.6]} 34... g6 {[%clk
0:01:28.2]} 35. Kd3 {[%clk 0:00:13.3]} 35... Rc3+ {[%clk 0:01:17.5]} 36. Kd2
{[%clk 0:00:14]} 36... f5 {[%clk 0:01:15.8]} 37. f3 {[%clk 0:00:08.2]} 37... h5
{[%clk 0:01:09]} 38. h4 {[%clk 0:00:08.3]} 38... Kd6 {[%clk 0:01:01.9]} 39. Rxb4
{[%clk 0:00:09]} 39... Rxc7 {[%clk 0:00:58.9]} 40. g4 {[%clk 0:00:09.7]} 40...
hxg4 {[%clk 0:00:52]} 41. fxg4 {[%clk 0:00:11.5]} 41... f4 {[%clk 0:00:51.1]}
42. Kd3 {[%clk 0:00:09]} 42... Rh7 {[%clk 0:00:48.5]} 43. Rb6+ {[%clk
0:00:05.7]} 43... Kc5 {[%clk 0:00:46.2]} 44. Rxg6 {[%clk 0:00:06.5]} 44... Rxh4
{[%clk 0:00:46.7]} 45. Ke4 {[%clk 0:00:07.9]} 45... Rh1 {[%clk 0:00:43]} 46.
Kxe5 {[%clk 0:00:08.8]} 46... f3 {[%clk 0:00:40.5]} 47. Rf6 {[%clk 0:00:09.9]}
47... Re1+ {[%clk 0:00:36.9]} 48. Kf5 {[%clk 0:00:06.9]} 48... f2 {[%clk
0:00:36.5]} 49. Kg6 {[%clk 0:00:08]} 49... f1=Q {[%clk 0:00:33]} 50. Rxf1 {[%clk
0:00:09.9]} 50... Rxf1 {[%clk 0:00:34.3]} 51. g5 {[%clk 0:00:11.8]} 51... Kd6
{[%clk 0:00:29.3]} 52. Kh7 {[%clk 0:00:13]} 52... Ke7 {[%clk 0:00:30.3]} 53. g6
{[%clk 0:00:14.6]} 53... Kf6 {[%clk 0:00:30.9]} 54. g7 {[%clk 0:00:15.5]} 54...
Rh1+ {[%clk 0:00:31.4]} 55. Kg8 {[%clk 0:00:16.3]} 55... Rg1 {[%clk 0:00:32.5]}
56. Kh8 {[%clk 0:00:16]} 56... Kf7 {[%clk 0:00:31.3]} 0-1

[Event "*** Titled Tuesday Blitz"]
[Site "Chess.com"]
[Date "2018.05.01"]
[Round "7"]
[White "djano"]
[Black "rubhani"]
[Result "0-1"]
[WhiteElo "2463"]
[BlackElo "2435"]
[TimeControl "180+2"]
[EndTime "14:36:14 PDT"]
[Termination "rubhani won by resignation"]

1. e4 {[%clk 0:03:01.9]} 1... c5 {[%clk 0:03:00.6]} 2. Nf3 {[%clk 0:03:01.9]}
2... d6 {[%clk 0:03:01.7]} 3. d4 {[%clk 0:03:02.3]} 3... cxd4 {[%clk 0:03:03.6]}
4. Nxd4 {[%clk 0:03:03.6]} 4... Nf6 {[%clk 0:03:05.2]} 5. Nc3 {[%clk 0:03:04.8]}
5... a6 {[%clk 0:03:06.6]} 6. Be2 {[%clk 0:03:05]} 6... e5 {[%clk 0:03:07.1]} 7.
Nf3 {[%clk 0:03:05.6]} 7... Be7 {[%clk 0:03:01.7]} 8. O-O {[%clk 0:03:06.4]}
8... O-O {[%clk 0:03:02.7]} 9. Bg5 {[%clk 0:03:04.2]} 9... Nbd7 {[%clk
0:03:03.3]} 10. a4 {[%clk 0:03:01.6]} 10... b6 {[%clk 0:03:02.3]} 11. Re1 {[%clk
0:02:55.2]} 11... Bb7 {[%clk 0:03:03]} 12. Bf1 {[%clk 0:02:45.7]} 12... Rc8
{[%clk 0:03:01.2]} 13. Nd2 {[%clk 0:02:28.6]} 13... Nc5 {[%clk 0:02:29.3]} 14.
Bxf6 {[%clk 0:02:27.4]} 14... Bxf6 {[%clk 0:02:30.2]} 15. Nc4 {[%clk 0:02:19.3]}
15... Nxe4 {[%clk 0:01:46.6]} 16. Nxe4 {[%clk 0:02:19.3]} 16... Bxe4 {[%clk
0:01:47.2]} 17. Qxd6 {[%clk 0:01:51.2]} 17... Bxc2 {[%clk 0:01:38.1]} 18. Qxb6
{[%clk 0:01:46.1]} 18... e4 {[%clk 0:01:31.1]} 19. Qxa6 {[%clk 0:01:35.1]} 19...
Bd3 {[%clk 0:01:29]} 20. Rac1 {[%clk 0:00:45.3]} 20... Bxb2 {[%clk 0:01:25.2]}
21. Bxd3 {[%clk 0:00:24]} 21... Qxd3 {[%clk 0:01:24.9]} 22. Red1 {[%clk
0:00:23.2]} 22... Bxc1 {[%clk 0:01:25.5]} 23. Rxd3 {[%clk 0:00:23.9]} 23... exd3
{[%clk 0:01:27.4]} 24. h4 {[%clk 0:00:21.5]} 24... Rfe8 {[%clk 0:01:11.8]} 25.
Kh2 {[%clk 0:00:21.3]} 25... Bf4+ {[%clk 0:01:05]} 26. g3 {[%clk 0:00:21.9]}
26... d2 {[%clk 0:01:06.1]} 27. Nxd2 {[%clk 0:00:21.2]} 27... Bxd2 {[%clk
0:01:06.8]} 28. Qd6 {[%clk 0:00:22.3]} 28... Be1 {[%clk 0:01:06.6]} 29. Kg1
{[%clk 0:00:20.8]} 29... g6 {[%clk 0:01:07.2]} 30. Qd7 {[%clk 0:00:21.1]} 30...
h5 {[%clk 0:01:07.9]} 31. Qb5 {[%clk 0:00:20]} 31... Ra8 {[%clk 0:01:04.9]} 32.
Kf1 {[%clk 0:00:19.7]} 32... Bc3 {[%clk 0:01:05.3]} 33. Qc4 {[%clk 0:00:20.2]}
33... Bf6 {[%clk 0:01:05.9]} 34. g4 {[%clk 0:00:21.1]} 34... hxg4 {[%clk
0:01:06.2]} 35. Qxg4 {[%clk 0:00:23]} 35... Ra5 {[%clk 0:01:05.6]} 36. Qd7
{[%clk 0:00:16.9]} 36... Rea8 {[%clk 0:01:05.1]} 37. Qc6 {[%clk 0:00:18.2]}
37... Kg7 {[%clk 0:01:04.6]} 38. h5 {[%clk 0:00:18.6]} 38... gxh5 {[%clk
0:01:05.4]} 39. Qg2+ {[%clk 0:00:19.6]} 39... Kf8 {[%clk 0:00:57.3]} 40. Qg3
{[%clk 0:00:19.3]} 40... Rxa4 {[%clk 0:00:55]} 41. Qf3 {[%clk 0:00:19.5]} 41...
R8a6 {[%clk 0:00:45.6]} 42. Qxh5 {[%clk 0:00:18.9]} 42... Ra1+ {[%clk
0:00:44.5]} 43. Kg2 {[%clk 0:00:19.7]} 43... R1a2 {[%clk 0:00:45.7]} 44. Qh6+
{[%clk 0:00:18.5]} 44... Bg7 {[%clk 0:00:44.6]} 45. Qf4 {[%clk 0:00:19.8]} 45...
Rg6+ {[%clk 0:00:43.3]} 46. Kf1 {[%clk 0:00:17.7]} 46... Ra1+ {[%clk 0:00:42.6]}
47. Ke2 {[%clk 0:00:18.6]} 47... Re6+ {[%clk 0:00:43.1]} 48. Kd3 {[%clk
0:00:18.7]} 48... Rd1+ {[%clk 0:00:43.7]} 49. Kc2 {[%clk 0:00:19.6]} 49... Rd8
{[%clk 0:00:43.9]} 50. Qc7 {[%clk 0:00:19.8]} 50... Red6 {[%clk 0:00:43.4]} 51.
f4 {[%clk 0:00:20.2]} 51... Bf6 {[%clk 0:00:44.4]} 52. f5 {[%clk 0:00:21]} 52...
Rd5 {[%clk 0:00:43.8]} 53. Qc6 {[%clk 0:00:20.1]} 53... Kg7 {[%clk 0:00:42.1]}
54. Kb3 {[%clk 0:00:19.8]} 54... Rxf5 {[%clk 0:00:42.6]} 55. Qg2+ {[%clk
0:00:20.3]} 55... Rg5 {[%clk 0:00:43.8]} 56. Qb7 {[%clk 0:00:20.3]} 56... Rh8
{[%clk 0:00:45.1]} 57. Kc4 {[%clk 0:00:20.7]} 57... Rh4+ {[%clk 0:00:45.9]} 58.
Kd3 {[%clk 0:00:22.1]} 58... Rg3+ {[%clk 0:00:47]} 59. Ke2 {[%clk 0:00:23.4]}
59... Rh2+ {[%clk 0:00:47.6]} 60. Kf1 {[%clk 0:00:24.7]} 60... Bd4 {[%clk
0:00:47.9]} 61. Qg2 {[%clk 0:00:12.8]} 61... Rgxg2 {[%clk 0:00:48]} 0-1